fUSD/lending_fUSD_20250206
["ID","MTS","AMOUNT","RATE_DAILY","PERIOD"]
[352006453,1738876249240,-500.0,0.00017254,2]
[352006455,1738876249252,-694.03,0.00017254,2]
[352006457,1738876249264,-500.0,0.00017254,2]
[352006459,1738876249276,-500.0,0.00017254,2]
[352006462,1738876249288,-500.0,0.00017254,2]
[352006464,1738876249299,-500.0,0.00017254,2]
[352006466,1738876249310,-500.0,0.00017254,2]
[352006468,1738876249322,-650.29,0.00017254,2]
[352006470,1738876249333,-500.0,0.00017254,2]
[352006472,1738876249346,-500.0,0.00017254,2]
[352006474,1738876249357,-507.75,0.00017254,2]
[352006477,1738876249369,-500.0,0.00017254,2]
[352006479,1738876249380,-500.0,0.00017254,2]
[352006481,1738876249392,-500.0,0.00017254,2]
[352006483,1738876249403,-500.0,0.00017254,2]
[352006485,1738876249415,-879.8,0.00017254,2]
[352006487,1738876249426,-151.0,0.00017254,2]
[352006490,1738876249437,-500.0,0.00017254,2]
[352006492,1738876249448,-389.7,0.00017254,2]
[352006494,1738876249461,-236.48,0.00017254,2]
[352006496,1738876249473,-500.0,0.00017254,2]
[352006498,1738876249485,-500.0,0.00017254,2]
[352006500,1738876249497,-809.66,0.00017254,2]
[352006502,1738876249508,-500.0,0.00017254,2]
[352006505,1738876249520,-500.0,0.00017254,2]
[352006507,1738876249532,-500.0,0.00017254,2]
[352006509,1738876249543,-519.75,0.00017254,2]
[352006511,1738876249555,-500.0,0.00017254,2]
[352006513,1738876249566,-500.0,0.00017254,2]
[352006515,1738876249578,-500.0,0.00017254,2]
[352006518,1738876249595,-664.14,0.00017254,2]
[352006520,1738876249606,-500.0,0.00017254,2]
[352006522,1738876249617,-204.27,0.00017254,2]
[352006524,1738876249629,-500.0,0.00017254,2]
[352006526,1738876249640,-380.31,0.00017254,2]
[352006528,1738876249652,-948.95,0.00017254,2]
[352006531,1738876249667,-500.0,0.00017254,2]
[352006533,1738876249678,-150.0,0.00017255,2]
[352006535,1738876249691,-150.0,0.00017256,2]
[352006537,1738876249703,-150.0,0.00017258,2]
[352006540,1738876249714,-150.0,0.00017266,2]
[352006543,1738876249724,-150.0,0.00017266,2]
[352006544,1738876249734,-150.0,0.00017266,2]
[352006546,1738876249745,-2725.56777521,0.00017267,2]
[352006548,1738876249754,-150.0,0.00017268,2]
[352006550,1738876249763,-150.0,0.00017269,2]
[352006552,1738876249773,-150.0,0.0001727,2]
[352006554,1738876249782,-150.0,0.00017271,2]
[352006556,1738876249792,-150.0,0.00017274,2]
[352006558,1738876249801,-444.98698833,0.00017276,2]
[352006560,1738876249810,-150.0,0.0001728,2]
[352006562,1738876249820,-150.0,0.0001728,2]
[352006564,1738876249829,-1000.0,0.00017284,2]
[352006566,1738876249839,-150.0,0.00017287,2]
[352006568,1738876249849,-150.0,0.00017293,2]
[352006570,1738876249859,-150.0,0.00017294,2]
[352006572,1738876249869,-150.0,0.00017294,2]
[352006574,1738876249878,-150.0,0.00017296,2]
[352006600,1738876250127,-150.0,0.00017298,2]
[352006603,1738876250151,-150.0,0.00017299,2]
[352006606,1738876250167,-205.0,0.000173,2]
[352006608,1738876250176,-150.0,0.00017301,2]
[352006610,1738876250186,-150.0,0.00017304,2]
[352006611,1738876250196,-150.0,0.00017306,2]
[352006612,1738876250205,-150.0,0.00017313,2]
[352006613,1738876250216,-150.0,0.00017317,2]
[352006614,1738876250225,-1000.0,0.00017318,2]
[352006616,1738876250235,-150.0,0.0001732,2]
[352006618,1738876250245,-150.0,0.00017324,2]
[352006620,1738876250254,-150.0,0.00017324,2]
[352006622,1738876250264,-2725.56777521,0.00017324,2]
[352006624,1738876250273,-150.0,0.00017326,2]
[352006626,1738876250282,-150.0,0.00017328,2]
[352006628,1738876250292,-150.0,0.00017329,2]
[352006631,1738876250302,-150.0,0.00017329,2]
[352006633,1738876250311,-150.0,0.00017332,2]
[352006635,1738876250320,-150.0,0.0001734,2]
[352006637,1738876250329,-150.0,0.00017341,2]
[352006639,1738876250339,-150.0,0.00017353,2]
[352006641,1738876250348,-150.0,0.0001736,2]
[352006643,1738876250358,-150.0,0.00017361,2]
[352006645,1738876250368,-150.0,0.00017363,2]
[352006647,1738876250377,-150.0,0.00017364,2]
[352006649,1738876250387,-150.0,0.00017365,2]
[352006651,1738876250395,-150.0,0.00017366,2]
[352006653,1738876250404,-150.0,0.00017368,2]
[352006655,1738876250414,-150.0,0.00017368,2]
[352006657,1738876250423,-150.0,0.0001737,2]
[352006659,1738876250432,-150.0,0.00017373,2]
[352006661,1738876250442,-150.0,0.00017375,2]
[352006663,1738876250451,-150.0,0.00017378,2]
[352006665,1738876250461,-2725.56777521,0.00017381,2]
[352006667,1738876250470,-150.0,0.00017384,2]
[352006669,1738876250479,-1045.22024954,0.00017386,2]
[352006671,1738876250489,-200.0,0.00017387,2]
[352006673,1738876250499,-150.0,0.0001739,2]
[352006675,1738876250508,-523.41,0.0001739,2]
[352006677,1738876250518,-151.0,0.0001739,2]
[352006679,1738876250527,-151.0,0.0001739,2]
[352006681,1738876250536,-500.0,0.0001739,2]
[352006683,1738876250545,-296.63,0.0001739,2]
[352006685,1738876250555,-500.0,0.0001739,2]
[352006687,1738876250563,-500.0,0.0001739,2]
[352006689,1738876250572,-500.0,0.0001739,2]
[352006691,1738876250583,-514.25,0.0001739,2]
[352006693,1738876250592,-150.05,0.0001739,2]
[352006695,1738876250602,-500.0,0.0001739,2]
[352006697,1738876250611,-500.0,0.0001739,2]
[352006699,1738876250620,-500.0,0.0001739,2]
[352006701,1738876250629,-600.23,0.0001739,2]
[352006703,1738876250638,-658.35,0.0001739,2]
[352006705,1738876250648,-569.41,0.0001739,2]
[352006707,1738876250658,-151.0,0.0001739,2]
[352006709,1738876250672,-151.0,0.0001739,2]
[352006711,1738876250681,-517.6,0.0001739,2]
[352006713,1738876250691,-814.05,0.0001739,2]
[352006715,1738876250702,-500.0,0.0001739,2]
[352006717,1738876250714,-1411.08,0.0001739,2]
[352006719,1738876250723,-500.0,0.0001739,2]
[352006721,1738876250732,-1085.04,0.0001739,2]
[352006723,1738876250743,-534.35,0.0001739,2]
[352006725,1738876250762,-500.0,0.0001739,2]
[352006727,1738876250772,-1014.82,0.0001739,2]
[352006729,1738876250782,-767.47,0.0001739,2]
[352006731,1738876250791,-695.55,0.0001739,2]
[352006733,1738876250802,-612.98,0.0001739,2]
[352006735,1738876250811,-993.91,0.0001739,2]
[352006737,1738876250819,-500.0,0.0001739,2]
[352006739,1738876250828,-504.84,0.0001739,2]
[352006741,1738876250838,-1654.52,0.0001739,2]
[352006743,1738876250847,-878.59,0.0001739,2]
[352006745,1738876250857,-500.0,0.0001739,2]
[352006747,1738876250867,-500.0,0.0001739,2]
[352006749,1738876250877,-526.46,0.0001739,2]
[352006751,1738876250886,-786.51,0.0001739,2]
[352006753,1738876250896,-864.3,0.0001739,2]
[352006755,1738876250905,-783.9,0.0001739,2]
[352006757,1738876250914,-597.3,0.0001739,2]
[352006759,1738876250923,-1022.06,0.0001739,2]
[352006761,1738876250932,-510.39,0.0001739,2]
[352006763,1738876250942,-500.0,0.0001739,2]
[352006765,1738876250951,-645.94,0.0001739,2]
[352006767,1738876250961,-1190.89,0.0001739,2]
[352006769,1738876250971,-500.0,0.0001739,2]
[352006770,1738876250983,-571.98,0.0001739,2]
[352006772,1738876250993,-500.0,0.0001739,2]
[352006774,1738876251003,-500.0,0.0001739,2]
[352006776,1738876251012,-500.0,0.0001739,2]
[352006778,1738876251022,-537.83,0.0001739,2]
[352006780,1738876251031,-500.0,0.0001739,2]
[352006782,1738876251041,-1135.93,0.0001739,2]
[352006785,1738876251051,-973.78,0.0001739,2]
[352006787,1738876251062,-500.0,0.0001739,2]
[352006789,1738876251072,-500.0,0.0001739,2]
[352006791,1738876251081,-500.19,0.0001739,2]
[352006793,1738876251090,-708.82,0.0001739,2]
[352006795,1738876251100,-694.04,0.0001739,2]
[352006797,1738876251109,-522.61012478,0.0001739,2]
[352006799,1738876251119,-500.0,0.00017391,2]
[352006801,1738876251128,-500.0,0.00017391,2]
[352006803,1738876251137,-352.13,0.00017391,2]
[352006805,1738876251147,-251.03413607,0.00017391,2]
[352006807,1738876251156,-500.0,0.00017391,2]
[352006809,1738876251166,-622.16,0.00017391,2]
[352006811,1738876251175,-500.0,0.00017391,2]
[352006813,1738876251185,-287.69,0.00017391,2]
[352006815,1738876251195,-500.0,0.00017391,2]
[352006817,1738876251205,-377.84430415,0.00017391,2]
[352006819,1738876251216,-500.0,0.00017391,2]
[352006821,1738876251226,-500.0,0.00017391,2]
[352006823,1738876251236,-500.0,0.00017391,2]
[352006825,1738876251246,-500.0,0.00017391,2]
[352006827,1738876251256,-500.0,0.00017391,2]
[352006829,1738876251266,-172.9,0.00017391,2]
[352006831,1738876251276,-500.0,0.00017391,2]
[352006833,1738876251286,-500.0,0.00017391,2]
[352006835,1738876251295,-500.0,0.00017391,2]
[352006838,1738876251305,-500.0,0.00017391,2]
[352006840,1738876251315,-500.0,0.00017391,2]
[352006842,1738876251325,-500.0,0.00017391,2]
[352006844,1738876251334,-385.66,0.00017391,2]
[352006846,1738876251344,-500.0,0.00017391,2]
[352006848,1738876251353,-605.29850549,0.00017391,2]
[352006850,1738876251363,-500.0,0.00017391,2]
[352006852,1738876251372,-500.0,0.00017391,2]
[352006854,1738876251382,-500.0,0.00017391,2]
[352006856,1738876251391,-500.0,0.00017391,2]
[352006858,1738876251400,-500.0,0.00017391,2]
[352006860,1738876251409,-569.39,0.00017391,2]
[352006862,1738876251419,-500.0,0.00017391,2]
[352006864,1738876251428,-500.0,0.00017391,2]
[352006866,1738876251438,-500.0,0.00017391,2]
[352006868,1738876251448,-500.0,0.00017391,2]
[352006870,1738876251458,-151.0,0.00017391,2]
[352006872,1738876251469,-500.0,0.00017391,2]
[352006874,1738876251479,-500.0,0.00017391,2]
[352006876,1738876251489,-500.0,0.00017391,2]
[352006878,1738876251498,-500.0,0.00017391,2]
[352006880,1738876251507,-500.0,0.00017391,2]
[352006882,1738876251517,-500.0,0.00017391,2]
[352006884,1738876251526,-500.0,0.00017391,2]
[352006886,1738876251535,-537.63,0.00017391,2]
[352006887,1738876251544,-717.8,0.00017391,2]
[352006890,1738876251555,-500.0,0.00017391,2]
[352006892,1738876251564,-500.0,0.00017391,2]
[352006893,1738876251573,-500.0,0.00017391,2]
[352006895,1738876251583,-500.0,0.00017391,2]
[352006897,1738876251593,-500.0,0.00017391,2]
[352006899,1738876251602,-500.0,0.00017391,2]
[352006901,1738876251611,-500.0,0.00017391,2]
[352006903,1738876251620,-550.87,0.00017391,2]
[352006905,1738876251631,-180.94,0.00017391,2]
[352006907,1738876251641,-500.0,0.00017391,2]
[352006909,1738876251650,-500.0,0.00017391,2]
[352006911,1738876251660,-500.0,0.00017391,2]
[352006913,1738876251675,-500.0,0.00017391,2]
[352006915,1738876251685,-500.0,0.00017391,2]
[352006917,1738876251695,-196.2107935,0.00017391,2]
[352006919,1738876251705,-500.0,0.00017391,2]
[352006921,1738876251716,-500.0,0.00017391,2]
[352006923,1738876251725,-500.0,0.00017391,2]
[352006925,1738876251734,-408.55271838,0.00017391,2]
[352006927,1738876251746,-500.0,0.00017391,2]
[352006929,1738876251755,-500.0,0.00017391,2]
[352006931,1738876251764,-500.0,0.00017391,2]
[352006933,1738876251774,-500.0,0.00017391,2]
[352006935,1738876251784,-267.13,0.00017391,2]
[352006937,1738876251794,-500.0,0.00017391,2]
[352006939,1738876251804,-500.0,0.00017391,2]
[352006941,1738876251814,-500.0,0.00017391,2]
[352006943,1738876251823,-500.0,0.00017391,2]
[352006945,1738876251832,-500.0,0.00017391,2]
[352006947,1738876251842,-500.0,0.00017391,2]
[352006949,1738876251851,-500.0,0.00017391,2]
[352006951,1738876251860,-500.0,0.00017391,2]
[352006953,1738876251869,-500.0,0.00017391,2]
[352006955,1738876251879,-172.97,0.00017391,2]
[352006957,1738876251888,-500.0,0.00017391,2]
[352006959,1738876251897,-500.0,0.00017391,2]
[352006961,1738876251907,-500.0,0.00017391,2]
[352006963,1738876251916,-500.0,0.00017391,2]
[352006964,1738876251925,-392.32,0.00017391,2]
[352006966,1738876251934,-229.4,0.00017391,2]
[352006968,1738876251944,-500.0,0.00017391,2]
[352006970,1738876251953,-500.0,0.00017391,2]
[352006972,1738876251963,-500.0,0.00017391,2]
[352006974,1738876251974,-500.0,0.00017391,2]
[352006976,1738876251984,-500.0,0.00017391,2]
[352006978,1738876251993,-535.86,0.00017391,2]
[352006980,1738876252003,-643.83,0.00017391,2]
[352006982,1738876252012,-500.0,0.00017391,2]
[352006984,1738876252021,-500.0,0.00017391,2]
[352006986,1738876252030,-500.0,0.00017391,2]
[352006988,1738876252040,-500.0,0.00017391,2]
[352006990,1738876252049,-500.0,0.00017391,2]
[352006992,1738876252058,-500.0,0.00017391,2]
[352006994,1738876252067,-500.0,0.00017391,2]
[352006996,1738876252076,-543.36,0.00017391,2]
[352006998,1738876252086,-500.0,0.00017391,2]
[352007000,1738876252095,-500.0,0.00017391,2]
[352007002,1738876252105,-500.0,0.00017391,2]
[352007004,1738876252114,-500.0,0.00017391,2]
[352007005,1738876252122,-500.0,0.00017391,2]
[352007007,1738876252132,-500.0,0.00017391,2]
[352007009,1738876252141,-500.0,0.00017391,2]
[352007011,1738876252150,-500.0,0.00017391,2]
[352007013,1738876252160,-500.0,0.00017391,2]
[352007015,1738876252170,-514.1,0.00017391,2]
[352007017,1738876252180,-322.77,0.00017391,2]
[352007020,1738876252190,-500.0,0.00017391,2]
[352007022,1738876252200,-500.0,0.00017391,2]
[352007023,1738876252209,-492.34,0.00017391,2]
[352007025,1738876252221,-500.0,0.00017391,2]
[352007027,1738876252230,-675.59,0.00017391,2]
[352007029,1738876252239,-500.0,0.00017391,2]
[352007031,1738876252250,-1691.93,0.00017391,2]
[352007033,1738876252260,-500.0,0.00017391,2]
[352007035,1738876252270,-2151.37,0.00017391,2]
[352007037,1738876252279,-500.0,0.00017391,2]
[352007039,1738876252289,-637.52,0.00017391,2]
[352007041,1738876252299,-222.33,0.00017391,2]
[352007043,1738876252309,-500.0,0.00017391,2]
[352007045,1738876252317,-500.0,0.00017391,2]
[352007046,1738876252327,-1046.02,0.00017391,2]
[352007047,1738876252338,-500.0,0.00017391,2]
[352007048,1738876252347,-644.14,0.00017391,2]
[352007049,1738876252357,-581.67,0.00017391,2]
[352007050,1738876252366,-470.96,0.00017391,2]
[352007051,1738876252376,-500.0,0.00017391,2]
[352007052,1738876252386,-500.0,0.00017391,2]
[352007053,1738876252396,-249.74121133,0.00017391,2]
[352007054,1738876252405,-500.0,0.00017391,2]
[352007055,1738876252415,-516.47,0.00017391,2]
[352007056,1738876252426,-500.0,0.00017391,2]
[352007057,1738876252436,-150.0,0.00017391,2]
[352007058,1738876252446,-2651.0,0.00017391,2]
[352007059,1738876252455,-500.0,0.00017391,2]
[352007061,1738876252467,-171.72,0.00017391,2]
[352007063,1738876252476,-500.0,0.00017391,2]
[352007065,1738876252486,-500.0,0.00017391,2]
[352007067,1738876252495,-737.86,0.00017391,2]
[352007069,1738876252504,-500.0,0.00017391,2]
[352007071,1738876252514,-627.92,0.00017391,2]
[352007073,1738876252524,-1059.9,0.00017391,2]
[352007075,1738876252533,-500.0,0.00017391,2]
[352007077,1738876252542,-192.64,0.00017391,2]
[352007079,1738876252552,-748.88,0.00017391,2]
[352007081,1738876252561,-500.0,0.00017391,2]
[352007083,1738876252571,-505.36,0.00017391,2]
[352007085,1738876252579,-343.12,0.00017391,2]
[352007087,1738876252590,-500.0,0.00017391,2]
[352007089,1738876252600,-180.84851597,0.00017391,2]
[352007091,1738876252609,-500.0,0.00017391,2]
[352007093,1738876252620,-640.73,0.00017391,2]
[352007095,1738876252630,-693.31,0.00017391,2]
[352007097,1738876252640,-500.0,0.00017391,2]
[352007099,1738876252650,-418.09901583,0.00017391,2]
[352007101,1738876252662,-500.0,0.00017391,2]
[352007103,1738876252673,-610.16,0.00017391,2]
[352007104,1738876252682,-500.0,0.00017391,2]
[352007106,1738876252692,-833.92,0.00017391,2]
[352007108,1738876252703,-500.0,0.00017391,2]
[352007110,1738876252712,-653.12,0.00017391,2]
[352007112,1738876252721,-500.0,0.00017391,2]
[352007114,1738876252731,-1244.56,0.00017391,2]
[352007117,1738876252743,-500.0,0.00017391,2]
[352007118,1738876252753,-500.0,0.00017391,2]
[352007120,1738876252763,-500.0,0.00017391,2]
[352007122,1738876252773,-838.67,0.00017391,2]
[352007124,1738876252782,-500.0,0.00017391,2]
[352007126,1738876252791,-320.99,0.00017391,2]
[352007128,1738876252801,-751.47,0.00017391,2]
[352007130,1738876252811,-500.0,0.00017391,2]
[352007132,1738876252821,-510.51,0.00017391,2]
[352007134,1738876252831,-634.66,0.00017391,2]
[352007136,1738876252841,-500.0,0.00017391,2]
[352007138,1738876252851,-250.37,0.00017391,2]
[352007140,1738876252860,-1059.52,0.00017391,2]
[352007142,1738876252869,-500.0,0.00017391,2]
[352007144,1738876252879,-500.0,0.00017391,2]
[352007146,1738876252889,-500.0,0.00017391,2]
[352007148,1738876252899,-642.4,0.00017391,2]
[352007150,1738876252909,-500.0,0.00017391,2]
[352007152,1738876252918,-694.03,0.00017391,2]
[352007154,1738876252927,-613.26,0.00017391,2]
[352007156,1738876252937,-500.0,0.00017391,2]
[352007158,1738876252949,-349.88,0.00017391,2]
[352007160,1738876252968,-500.0,0.00017391,2]
[352007162,1738876252978,-500.0,0.00017391,2]
[352007164,1738876252987,-650.29,0.00017391,2]
[352007166,1738876252997,-500.0,0.00017391,2]
[352007168,1738876253007,-507.75,0.00017391,2]
[352007170,1738876253017,-500.0,0.00017391,2]
[352007172,1738876253027,-500.0,0.00017391,2]
[352007174,1738876253037,-468.23,0.00017391,2]
[352007176,1738876253046,-879.8,0.00017391,2]
[352007178,1738876253055,-151.0,0.00017391,2]
[352007180,1738876253067,-500.0,0.00017391,2]
[352007182,1738876253077,-540.67,0.00017391,2]
[352007184,1738876253086,-809.66,0.00017391,2]
[352007186,1738876253096,-500.0,0.00017391,2]
[352007188,1738876253106,-536.01159117,0.00017391,2]
[352007190,1738876253115,-248.75,0.00017391,2]
[352007192,1738876253124,-519.75,0.00017391,2]
[352007194,1738876253134,-246.04,0.00017391,2]
[352007196,1738876253145,-500.0,0.00017391,2]
[352007198,1738876253155,-500.0,0.00017391,2]
[352007200,1738876253166,-664.14,0.00017391,2]
[352007202,1738876253176,-469.56,0.00017391,2]
[352007204,1738876253186,-948.95,0.00017391,2]
[352007206,1738876253195,-500.0,0.00017391,2]
[352007208,1738876253205,-380.74,0.00017392,2]
[352007210,1738876253215,-3107.97579092,0.00017393,2]
[352007212,1738876253224,-1500.0,0.000174,6]
[352007214,1738876253234,-522.61012478,0.00017403,2]
[352007216,1738876253243,-262.99849374,0.00017405,2]
[352007218,1738876253253,-1045.22024954,0.00017407,2]
[352007220,1738876253263,-1045.22024955,0.00017407,2]
[352007222,1738876253272,-1045.22024955,0.00017414,2]
[352007224,1738876253282,-598.23532452,0.00017417,2]
[352007226,1738876253293,-11701.27137607,0.00017418,2]
[352007230,1738876253303,-500.0,0.00017418,2]
[352007231,1738876253457,-500.0,0.00017418,2]
[352007232,1738876253468,-2651.0,0.00017418,2]
[352007233,1738876253478,-19167.07755338,0.00017419,2]
[352007234,1738876253488,-1045.22024955,0.00017419,2]
[352007235,1738876253497,-1045.22024954,0.00017423,2]
[352007236,1738876253507,-9792.51569167,0.00017423,2]
[352007237,1738876253516,-151.0,0.00017423,2]
[352007239,1738876253526,-151.0,0.00017423,2]
[352007240,1738876253535,-151.0,0.00017423,2]
[352007241,1738876253545,-151.0,0.00017423,2]
[352007242,1738876253554,-11968.8465504,0.00017426,2]
[352007243,1738876253564,-2147.1932574,0.00017426,2]
[352007244,1738876253573,-1037.44702459,0.00017429,2]
[352007245,1738876253582,-261.63023801,0.00017429,2]
[352007246,1738876253590,-200.0,0.00017429,2]
[352007247,1738876253599,-1045.22024954,0.00017431,2]
[352007248,1738876253608,-200.0,0.00017434,2]
[352007249,1738876253618,-200.0,0.00017434,2]
[352007250,1738876253627,-6041.192162,0.00017434,2]
[352007251,1738876253636,-1513.93653,0.00017434,2]
[352007252,1738876253645,-208.06353504,0.00017434,2]
[352007253,1738876253654,-2773.66625368,0.00017435,2]
[352007254,1738876253666,-9792.51569167,0.00017435,2]
[352007256,1738876253676,-200.0,0.00017435,2]
[352007258,1738876253686,-522.61012478,0.00017435,2]
[352007259,1738876253696,-200.0,0.00017436,2]
[352007260,1738876253707,-2090.4404991,0.00017437,2]
[352007261,1738876253718,-2725.56777521,0.00017438,2]
[352007262,1738876253728,-11701.27137607,0.00017438,2]
[352007263,1738876253739,-19167.07755338,0.00017439,2]
[352007264,1738876253750,-924.555418,0.0001744,2]
[352007266,1738876253760,-290.59027412,0.00017442,2]
[352007268,1738876253770,-9792.51569167,0.00017443,2]
[352007269,1738876253780,-19167.07755338,0.00017445,2]
[352007270,1738876253790,-2773.66625368,0.00017445,2]
[352007271,1738876253799,-500.0,0.00017446,2]
[352007272,1738876253810,-500.0,0.00017446,2]
[352007273,1738876253819,-2651.0,0.00017446,2]
[352007274,1738876253829,-522.61012478,0.00017446,2]
[352007275,1738876253839,-598.23532452,0.00017448,2]
[352007276,1738876253849,-76428.31021319,0.00017448,2]
[352007277,1738876253860,-73009.44024472,0.00017449,2]
[352007278,1738876253870,-1546.53141593,0.00017449,2]
[352007279,1738876253880,-11701.27137607,0.00017453,2]
[352007280,1738876253890,-76428.31021318,0.00017454,2]
[352007281,1738876253899,-598.23532452,0.00017456,2]
[352007282,1738876253910,-4541.03641052,0.00017461,2]
[352007283,1738876253919,-2270.51820526,0.00017461,2]
[352007284,1738876253928,-2270.51820527,0.00017462,2]
[352007285,1738876253938,-924.555418,0.00017462,2]
[352007286,1738876253947,-2090.4404991,0.00017465,2]
[352007287,1738876253957,-76428.31021319,0.00017466,2]
[352007288,1738876253968,-3107.97579092,0.00017466,2]
[352007289,1738876253978,-2392.94129809,0.00017466,2]
[352007290,1738876253988,-12422.04584798,0.00017467,2]
[352007291,1738876253998,-3107.97579092,0.00017469,2]
[352007292,1738876254008,-290.59027412,0.0001747,2]
[352007293,1738876254019,-19167.07755338,0.0001747,2]
[352007294,1738876254028,-500.0,0.00017473,2]
[352007295,1738876254039,-951.16411195,0.00017473,2]
[352007296,1738876254049,-2651.0,0.00017473,2]
[352007297,1738876254059,-2270.51820526,0.00017473,2]
[352007298,1738876254068,-1546.53141593,0.00017474,2]
[352007300,1738876254078,-200.0,0.00017474,2]
[352007302,1738876254088,-4785.88259617,0.00017476,2]
[352007304,1738876254098,-11701.27137607,0.00017476,2]
[352007306,1738876254107,-233.08985532,0.00017476,2]
[352007307,1738876254117,-924.555418,0.00017477,2]
[352007310,1738876254127,-200.0,0.00017477,2]
[352007312,1738876254137,-9792.51569167,0.00017478,2]
[352007314,1738876254147,-2270.51820526,0.00017482,2]
[352007316,1738876254158,-233.08985532,0.00017486,2]
[352007318,1738876254167,-924.555418,0.00017488,2]
[352007320,1738876254177,-3107.97579092,0.00017489,2]
[352007322,1738876254187,-2392.94129809,0.0001749,2]
[352007324,1738876254198,-4180.88099819,0.0001749,2]
[352007326,1738876254207,-1045.22024955,0.00017491,2]
[352007328,1738876254217,-598.23532452,0.00017492,2]
[352007330,1738876254227,-4785.88259617,0.00017493,2]
[352007332,1738876254237,-76428.31021319,0.00017493,2]
[352007334,1738876254248,-290.59027412,0.00017493,2]
[352007336,1738876254258,-240.0000003,0.00017495,2]
[352007338,1738876254267,-2725.56777521,0.00017495,2]
[352007340,1738876254277,-232.334351,0.00017495,2]
[352007342,1738876254287,-1546.53141593,0.00017496,2]
[352007343,1738876254296,-200.0,0.00017496,2]
[352007346,1738876254306,-200.0,0.00017499,2]
[352007348,1738876254316,-366.0,0.000175,2]
[352007350,1738876254325,-746.0,0.000175,2]
[352007352,1738876254335,-693.0,0.000175,2]
[352007353,1738876254345,-2300.0,0.000175,6]
[352007356,1738876254355,-500.0,0.00017501,2]
[352007358,1738876254365,-2651.0,0.00017501,2]
[352007359,1738876254374,-1858.4681736,0.00017517,2]
[352007361,1738876254383,-202.0,0.0001752,2]
[352007363,1738876254393,-444.98698833,0.00017522,2]
[352007366,1738876254403,-523.41,0.00017527,2]
[352007367,1738876254413,-500.0,0.00017527,2]
[352007368,1738876254423,-500.0,0.00017527,2]
[352007369,1738876254433,-500.0,0.00017527,2]
[352007370,1738876254443,-161.61521,0.00017527,2]
[352007371,1738876254454,-500.0,0.00017527,2]
[352007372,1738876254466,-514.25,0.00017527,2]
[352007373,1738876254476,-500.0,0.00017527,2]
[352007374,1738876254486,-500.0,0.00017527,2]
[352007375,1738876254496,-500.0,0.00017527,2]
[352007376,1738876254506,-600.23,0.00017527,2]
[352007377,1738876254516,-150.906167,0.00017527,2]
[352007378,1738876254527,-658.35,0.00017527,2]
[352007379,1738876254537,-569.41,0.00017527,2]
[352007380,1738876254547,-517.6,0.00017527,2]
[352007381,1738876254556,-814.05,0.00017527,2]
[352007382,1738876254566,-500.0,0.00017527,2]
[352007383,1738876254575,-1411.08,0.00017527,2]
[352007384,1738876254585,-500.0,0.00017527,2]
[352007385,1738876254595,-1085.04,0.00017527,2]
[352007386,1738876254605,-534.35,0.00017527,2]
[352007387,1738876254616,-500.0,0.00017527,2]